[Event "Titled Tuesday Blitz May 24 Early 2022"]
[White "Rustemov, Alexander"]
[Black "Jakubowski, Krzysztof"]
[WhiteFideId "4119002"]
[BlackFideId "1112848"]
[WhiteElo "2817"]
[BlackElo "2365"]
[Result "1-0"]
[Round "06"]
[TimeControl "180+1"]
[Date "2022.05.24"]
[WhiteClock "0:00:33"]
[BlackClock "0:00:01"]

1. d4 {[%clk 0:03:00]}  Nf6 {[%clk 0:02:58]} 2. c4 {[%clk 0:03:00]}  e6 {[%clk 0:02:57]} 3. Nf3 {[%clk 0:03:01]}  d5 {[%clk 0:02:56]} 4. Nc3 {[%clk 0:03:00]}  Nbd7 {[%clk 0:02:55]} 5. cxd5 {[%clk 0:03:00]}  exd5 {[%clk 0:02:54]} 6. Bg5 {[%clk 0:03:00]}  Be7 {[%clk 0:02:52]} 7. e3 {[%clk 0:03:01]}  O-O {[%clk 0:02:52]} 8. Bd3 {[%clk 0:03:01]}  c6 {[%clk 0:02:51]} 9. Qc2 {[%clk 0:03:01]}  Re8 {[%clk 0:02:51]} 10. h3 {[%clk 0:03:00]}  Nf8 {[%clk 0:02:43]} 11. Bf4 {[%clk 0:03:00]}  Bd6 {[%clk 0:02:40]} 12. Bxd6 {[%clk 0:02:59]}  Qxd6 {[%clk 0:02:39]} 13. O-O-O {[%clk 0:02:58]}  a5 {[%clk 0:02:37]} 14. Kb1 {[%clk 0:02:58]}  g6 {[%clk 0:02:33]} 15. Rc1 {[%clk 0:02:56]}  N8d7 {[%clk 0:02:24]} 16. Na4 {[%clk 0:02:53]}  Qe6 {[%clk 0:02:09]} 17. Nc5 {[%clk 0:02:36]}  Nxc5 {[%clk 0:02:08]} 18. Qxc5 {[%clk 0:02:36]}  Kg7 {[%clk 0:01:58]} 19. Rc2 {[%clk 0:02:25]}  Ne4 {[%clk 0:01:49]} 20. Qb6 {[%clk 0:02:03]}  Nd6 {[%clk 0:01:31]} 21. Ne5 {[%clk 0:01:50]}  Qe7 {[%clk 0:01:20]} 22. g4 {[%clk 0:01:43]}  f6 {[%clk 0:01:20]} 23. Nf3 {[%clk 0:01:42]}  Qd8 {[%clk 0:01:12]} 24. Qc5 {[%clk 0:01:37]}  a4 {[%clk 0:01:06]} 25. a3 {[%clk 0:01:37]}  Ra5 {[%clk 0:00:59]} 26. Qb4 {[%clk 0:01:32]}  Ra7 {[%clk 0:00:51]} 27. Rg1 {[%clk 0:01:28]}  Qc7 {[%clk 0:00:28]} 28. h4 {[%clk 0:01:26]}  b5 {[%clk 0:00:27]} 29. g5 {[%clk 0:01:24]}  Nc4 {[%clk 0:00:25]} 30. Qc5 {[%clk 0:01:11]}  f5 {[%clk 0:00:21]} 31. Bxc4 {[%clk 0:01:08]}  bxc4 {[%clk 0:00:21]} 32. Ne5 {[%clk 0:01:09]}  Ra6 {[%clk 0:00:19]} 33. f4 {[%clk 0:01:03]}  Be6 {[%clk 0:00:19]} 34. h5 {[%clk 0:01:03]}  Rb8 {[%clk 0:00:18]} 35. hxg6 {[%clk 0:00:47]}  hxg6 {[%clk 0:00:14]} 36. Rh2 {[%clk 0:00:48]}  Rb5 {[%clk 0:00:13]} 37. Rgh1 {[%clk 0:00:48]}  Bg8 {[%clk 0:00:13]} 38. Rh6 {[%clk 0:00:42]}  Rxc5 {[%clk 0:00:13]} 39. Rxg6+ {[%clk 0:00:42]}  Kf8 {[%clk 0:00:13]} 40. Rh8 {[%clk 0:00:38]}  Qa5 {[%clk 0:00:01]} 41. Rhxg8+ {[%clk 0:00:34]}  Ke7 {[%clk 0:00:01]} 42. R6g7+ {[%clk 0:00:33]} 1-0


[Site "https://www.chess.com"]

[Event "Titled Tuesday Blitz May 24 Early 2022"]
[White "Sadubayev, Airat"]
[Black "Nilsen, Tobias Lang"]
[WhiteFideId "13713264"]
[BlackFideId "1521624"]
[WhiteElo "2234"]
[BlackElo "2014"]
[Result "1-0"]
[Round "06"]
[TimeControl "180+1"]
[Date "2022.05.25"]
[WhiteClock "0:00:21"]
[BlackClock "0:00:05"]

1. e4 {[%clk 0:03:00]}  e6 {[%clk 0:02:54]} 2. d4 {[%clk 0:02:57]}  d5 {[%clk 0:02:54]} 3. Nc3 {[%clk 0:02:58]}  Bb4 {[%clk 0:02:53]} 4. e5 {[%clk 0:02:57]}  Ne7 {[%clk 0:02:50]} 5. Bd3 {[%clk 0:02:51]}  c5 {[%clk 0:02:49]} 6. a3 {[%clk 0:02:50]}  cxd4 {[%clk 0:02:39]} 7. axb4 {[%clk 0:02:49]}  dxc3 {[%clk 0:02:37]} 8. Nf3 {[%clk 0:02:48]}  Qc7 {[%clk 0:02:36]} 9. O-O {[%clk 0:02:46]}  cxb2 {[%clk 0:02:34]} 10. Bxb2 {[%clk 0:02:45]}  Nd7 {[%clk 0:02:34]} 11. Re1 {[%clk 0:02:33]}  Ng6 {[%clk 0:02:32]} 12. Rc1 {[%clk 0:02:21]}  Nb6 {[%clk 0:02:30]} 13. h4 {[%clk 0:02:01]}  Bd7 {[%clk 0:02:22]} 14. g3 {[%clk 0:01:57]}  a6 {[%clk 0:02:10]} 15. Ng5 {[%clk 0:01:52]}  h6 {[%clk 0:02:06]} 16. Nf3 {[%clk 0:01:47]}  Ne7 {[%clk 0:02:03]} 17. Bd4 {[%clk 0:01:42]}  Bb5 {[%clk 0:02:00]} 18. Qe2 {[%clk 0:01:36]}  Nc4 {[%clk 0:01:52]} 19. Bc5 {[%clk 0:01:27]}  b6 {[%clk 0:01:50]} 20. Bxe7 {[%clk 0:01:26]}  Kxe7 {[%clk 0:01:47]} 21. Nd4 {[%clk 0:01:27]}  Qd7 {[%clk 0:01:45]} 22. h5 {[%clk 0:01:23]}  Rhc8 {[%clk 0:01:41]} 23. Qg4 {[%clk 0:01:20]}  Kf8 {[%clk 0:01:41]} 24. f4 {[%clk 0:01:19]}  Nd2 {[%clk 0:01:35]} 25. Bxb5 {[%clk 0:01:12]}  axb5 {[%clk 0:01:33]} 26. f5 {[%clk 0:01:12]}  Rc4 {[%clk 0:01:27]} 27. fxe6 {[%clk 0:01:09]}  Rxd4 {[%clk 0:01:25]} 28. Qxd4 {[%clk 0:01:00]}  Nf3+ {[%clk 0:01:25]} 29. Kg2 {[%clk 0:01:00]}  Nxd4 {[%clk 0:01:26]} 30. exd7 {[%clk 0:00:58]}  Ne6 {[%clk 0:01:08]} 31. Red1 {[%clk 0:00:55]}  d4 {[%clk 0:01:06]} 32. c3 {[%clk 0:00:51]}  Ra2+ {[%clk 0:01:01]} 33. Kf1 {[%clk 0:00:50]}  Ke7 {[%clk 0:01:01]} 34. cxd4 {[%clk 0:00:49]}  Kxd7 {[%clk 0:01:02]} 35. d5 {[%clk 0:00:48]}  Ng5 {[%clk 0:01:02]} 36. d6 {[%clk 0:00:47]}  Nf3 {[%clk 0:01:03]} 37. Rc7+ {[%clk 0:00:42]}  Kd8 {[%clk 0:00:26]} 38. Rd5 {[%clk 0:00:40]}  Nh2+ {[%clk 0:00:23]} 39. Ke1 {[%clk 0:00:40]}  Nf3+ {[%clk 0:00:24]} 40. Kd1 {[%clk 0:00:40]}  Ra1+ {[%clk 0:00:16]} 41. Ke2 {[%clk 0:00:40]}  Ng5 {[%clk 0:00:15]} 42. Rxb5 {[%clk 0:00:40]}  Ne6 {[%clk 0:00:15]} 43. Rc4 {[%clk 0:00:34]}  Ra2+ {[%clk 0:00:13]} 44. Kd1 {[%clk 0:00:33]}  Ra1+ {[%clk 0:00:14]} 45. Kc2 {[%clk 0:00:33]}  Ra2+ {[%clk 0:00:13]} 46. Kb1 {[%clk 0:00:32]}  Ra6 {[%clk 0:00:12]} 47. Rd5 {[%clk 0:00:32]}  Ra4 {[%clk 0:00:09]} 48. Rd2 {[%clk 0:00:30]}  Ra8 {[%clk 0:00:07]} 49. Ra2 {[%clk 0:00:30]}  Rxa2 {[%clk 0:00:06]} 50. Kxa2 {[%clk 0:00:31]}  Kd7 {[%clk 0:00:05]} 51. Kb3 {[%clk 0:00:30]}  Ng5 {[%clk 0:00:05]} 52. Rc7+ {[%clk 0:00:29]}  Kd8 {[%clk 0:00:04]} 53. Kc4 {[%clk 0:00:28]}  Nf3 {[%clk 0:00:04]} 54. Kd5 {[%clk 0:00:27]}  Ng5 {[%clk 0:00:04]} 55. b5 {[%clk 0:00:25]}  g6 {[%clk 0:00:03]} 56. hxg6 {[%clk 0:00:21]}  fxg6 {[%clk 0:00:04]} 57. e6 {[%clk 0:00:21]}  Nxe6 {[%clk 0:00:03]} 58. Kxe6 {[%clk 0:00:22]}  h5 {[%clk 0:00:03]} 59. Rh7 {[%clk 0:00:19]}  Kc8 {[%clk 0:00:03]} 60. Rh8+ {[%clk 0:00:20]}  Kb7 {[%clk 0:00:04]} 61. d7 {[%clk 0:00:21]}  h4 {[%clk 0:00:05]} 62. d8=Q {[%clk 0:00:21]} 1-0


[Site "https://www.chess.com"]

[Event "Titled Tuesday Blitz May 24 Early 2022"]
[White "Samadov, Read"]
[Black "Hamley, Ryan"]
[WhiteFideId "13417444"]
[BlackFideId "30959497"]
[WhiteElo "2084"]
[BlackElo "2540"]
[Result "1-0"]
[Round "06"]
[TimeControl "180+1"]
[Date "2022.05.25"]
[WhiteClock "0:00:28"]
[BlackClock "0:00:07"]

1. d4 {[%clk 0:03:00]}  Nf6 {[%clk 0:02:57]} 2. c4 {[%clk 0:03:01]}  e6 {[%clk 0:02:57]} 3. Nf3 {[%clk 0:03:01]}  d5 {[%clk 0:02:58]} 4. Nc3 {[%clk 0:03:01]}  Bb4 {[%clk 0:02:58]} 5. Bg5 {[%clk 0:02:56]}  h6 {[%clk 0:02:57]} 6. Bxf6 {[%clk 0:02:56]}  Qxf6 {[%clk 0:02:56]} 7. e3 {[%clk 0:02:57]}  O-O {[%clk 0:02:56]} 8. Rc1 {[%clk 0:02:57]}  dxc4 {[%clk 0:02:55]} 9. Bxc4 {[%clk 0:02:58]}  a6 {[%clk 0:02:55]} 10. O-O {[%clk 0:02:57]}  b5 {[%clk 0:02:53]} 11. Ne4 {[%clk 0:02:54]}  Qe7 {[%clk 0:02:51]} 12. Bd3 {[%clk 0:02:54]}  Bb7 {[%clk 0:02:49]} 13. a3 {[%clk 0:02:53]}  Bd6 {[%clk 0:02:49]} 14. Nc5 {[%clk 0:02:52]}  Bc8 {[%clk 0:02:32]} 15. Bb1 {[%clk 0:02:44]}  Nd7 {[%clk 0:02:32]} 16. Qc2 {[%clk 0:02:34]}  g6 {[%clk 0:02:31]} 17. Rfd1 {[%clk 0:02:24]}  Nf6 {[%clk 0:02:06]} 18. Ne5 {[%clk 0:02:17]}  Bxe5 {[%clk 0:01:59]} 19. dxe5 {[%clk 0:02:17]}  Nd5 {[%clk 0:02:00]} 20. Rd4 {[%clk 0:01:53]}  Kh7 {[%clk 0:01:43]} 21. h4 {[%clk 0:01:51]}  h5 {[%clk 0:01:40]} 22. Qd1 {[%clk 0:01:35]}  Kg7 {[%clk 0:01:34]} 23. Qf3 {[%clk 0:01:33]}  Rb8 {[%clk 0:01:28]} 24. Ba2 {[%clk 0:01:22]}  Nb6 {[%clk 0:01:20]} 25. Rf4 {[%clk 0:01:06]}  Nc4 {[%clk 0:01:18]} 26. Bxc4 {[%clk 0:01:00]}  Qxc5 {[%clk 0:01:10]} 27. b4 {[%clk 0:00:49]}  Qxe5 {[%clk 0:01:08]} 28. Bd3 {[%clk 0:00:48]}  Bb7 {[%clk 0:01:07]} 29. Qg3 {[%clk 0:00:48]}  Qd6 {[%clk 0:01:01]} 30. Bb1 {[%clk 0:00:38]}  Bd5 {[%clk 0:00:42]} 31. Rc5 {[%clk 0:00:34]}  e5 {[%clk 0:00:26]} 32. Rf5 {[%clk 0:00:34]}  Be6 {[%clk 0:00:17]} 33. Rfxe5 {[%clk 0:00:32]}  Qd1+ {[%clk 0:00:15]} 34. Kh2 {[%clk 0:00:32]}  Qxb1 {[%clk 0:00:16]} 35. Rxe6 {[%clk 0:00:30]}  fxe6 {[%clk 0:00:15]} 36. Rxc7+ {[%clk 0:00:30]}  Rf7 {[%clk 0:00:02]} 37. Rxf7+ {[%clk 0:00:30]}  Kxf7 {[%clk 0:00:03]} 38. Qxb8 {[%clk 0:00:31]}  Qf5 {[%clk 0:00:02]} 39. Qf4 {[%clk 0:00:30]}  Kf6 {[%clk 0:00:02]} 40. Kg3 {[%clk 0:00:29]}  e5 {[%clk 0:00:02]} 41. Qxf5+ {[%clk 0:00:29]}  Kxf5 {[%clk 0:00:03]} 42. f3 {[%clk 0:00:26]}  e4 {[%clk 0:00:03]} 43. f4 {[%clk 0:00:24]}  Ke6 {[%clk 0:00:03]} 44. Kh3 {[%clk 0:00:25]}  Kd5 {[%clk 0:00:04]} 45. g4 {[%clk 0:00:25]}  hxg4+ {[%clk 0:00:04]} 46. Kxg4 {[%clk 0:00:25]}  Kc4 {[%clk 0:00:03]} 47. f5 {[%clk 0:00:26]}  gxf5+ {[%clk 0:00:04]} 48. Kxf5 {[%clk 0:00:25]}  Kd3 {[%clk 0:00:05]} 49. Kf4 {[%clk 0:00:26]}  Kc3 {[%clk 0:00:05]} 50. h5 {[%clk 0:00:26]}  Kb3 {[%clk 0:00:06]} 51. h6 {[%clk 0:00:27]}  Kxa3 {[%clk 0:00:07]} 52. h7 {[%clk 0:00:28]} 1-0


[Site "https://www.chess.com"]

[Event "Titled Tuesday Blitz May 24 Early 2022"]
[White "Samaganova, Aleksandra"]
[Black "Vusatiuk, Vladimir"]
[WhiteFideId "13800221"]
[BlackFideId "14118610"]
[WhiteElo "1889"]
[BlackElo "2157"]
[Result "1-0"]
[Round "06"]
[TimeControl "180+1"]
[Date "2022.05.25"]
[WhiteClock "0:00:05"]
[BlackClock "0:00:10"]

1. c4 {[%clk 0:03:00]}  e6 {[%clk 0:02:58]} 2. Nc3 {[%clk 0:02:59]}  d5 {[%clk 0:02:58]} 3. e3 {[%clk 0:02:57]}  Nf6 {[%clk 0:02:55]} 4. Nf3 {[%clk 0:02:57]}  c5 {[%clk 0:02:54]} 5. d4 {[%clk 0:02:58]}  Nc6 {[%clk 0:02:54]} 6. cxd5 {[%clk 0:02:58]}  exd5 {[%clk 0:02:52]} 7. Bd3 {[%clk 0:02:58]}  c4 {[%clk 0:02:52]} 8. Bb1 {[%clk 0:02:58]}  Bb4 {[%clk 0:02:53]} 9. O-O {[%clk 0:02:58]}  O-O {[%clk 0:02:51]} 10. h3 {[%clk 0:02:55]}  Be6 {[%clk 0:02:45]} 11. Re1 {[%clk 0:02:55]}  Re8 {[%clk 0:02:42]} 12. Bd2 {[%clk 0:02:30]}  a6 {[%clk 0:02:35]} 13. Qc2 {[%clk 0:02:19]}  h6 {[%clk 0:02:12]} 14. e4 {[%clk 0:01:54]}  Bxc3 {[%clk 0:02:05]} 15. bxc3 {[%clk 0:01:44]}  Nxe4 {[%clk 0:02:04]} 16. Rxe4 {[%clk 0:01:42]}  dxe4 {[%clk 0:02:03]} 17. Qxe4 {[%clk 0:01:43]}  Kf8 {[%clk 0:01:45]} 18. Qh7 {[%clk 0:01:37]}  Qf6 {[%clk 0:01:40]} 19. Bc1 {[%clk 0:01:23]}  Ke7 {[%clk 0:01:29]} 20. Ba3+ {[%clk 0:01:19]}  Kd7 {[%clk 0:01:27]} 21. Be4 {[%clk 0:01:08]}  Rh8 {[%clk 0:01:13]} 22. Bxc6+ {[%clk 0:01:02]}  bxc6 {[%clk 0:01:10]} 23. Qc2 {[%clk 0:00:52]}  Rhc8 {[%clk 0:01:01]} 24. Qa4 {[%clk 0:00:44]}  Bd5 {[%clk 0:00:56]} 25. Ne5+ {[%clk 0:00:40]}  Ke6 {[%clk 0:00:20]} 26. Re1 {[%clk 0:00:33]}  Kf5 {[%clk 0:00:20]} 27. Qc2+ {[%clk 0:00:27]}  Kg5 {[%clk 0:00:20]} 28. Bc1+ {[%clk 0:00:18]}  Kh4 {[%clk 0:00:12]} 29. Qe2 {[%clk 0:00:09]}  Qf5 {[%clk 0:00:10]} 30. g3+ {[%clk 0:00:05]}  Kxh3 {[%clk 0:00:10]} 31. Qf1+ {[%clk 0:00:04]}  Bg2 {[%clk 0:00:10]} 32. Qxg2# {[%clk 0:00:05]} 1-0


[Site "https://www.chess.com"]

[Event "Titled Tuesday Blitz May 24 Early 2022"]
[White "Sargsyan, Anna M."]
[Black "Costachi, Mihnea"]
[WhiteFideId "13308130"]
[BlackFideId "1217518"]
[WhiteElo "2271"]
[BlackElo "2476"]
[Result "0-1"]
[Round "06"]
[TimeControl "180+1"]
[Date "2022.05.24"]
[WhiteClock "0:00:55"]
[BlackClock "0:02:02"]

1. e4 {[%clk 0:03:00]}  e5 {[%clk 0:02:59]} 2. Nf3 {[%clk 0:02:57]}  Nf6 {[%clk 0:02:59]} 3. Nxe5 {[%clk 0:02:49]}  d6 {[%clk 0:02:59]} 4. Nf3 {[%clk 0:02:50]}  Nxe4 {[%clk 0:02:59]} 5. Nc3 {[%clk 0:02:49]}  Nxc3 {[%clk 0:02:59]} 6. dxc3 {[%clk 0:02:50]}  Be7 {[%clk 0:03:00]} 7. Bf4 {[%clk 0:02:50]}  Be6 {[%clk 0:03:00]} 8. Qd2 {[%clk 0:02:51]}  Nc6 {[%clk 0:03:00]} 9. O-O-O {[%clk 0:02:48]}  Qd7 {[%clk 0:03:01]} 10. Kb1 {[%clk 0:02:49]}  h6 {[%clk 0:03:00]} 11. Bd3 {[%clk 0:02:45]}  Bf6 {[%clk 0:02:59]} 12. h3 {[%clk 0:02:44]}  a6 {[%clk 0:02:59]} 13. g4 {[%clk 0:02:43]}  g5 {[%clk 0:02:58]} 14. Bg3 {[%clk 0:02:30]}  O-O-O {[%clk 0:02:57]} 15. Rhe1 {[%clk 0:02:30]}  Rdg8 {[%clk 0:02:50]} 16. Qe2 {[%clk 0:02:20]}  h5 {[%clk 0:02:47]} 17. Bxa6 {[%clk 0:02:11]}  hxg4 {[%clk 0:02:35]} 18. Bxb7+ {[%clk 0:02:11]}  Kxb7 {[%clk 0:02:34]} 19. Qb5+ {[%clk 0:02:12]}  Kc8 {[%clk 0:02:34]} 20. Qa6+ {[%clk 0:02:09]}  Kd8 {[%clk 0:02:34]} 21. hxg4 {[%clk 0:02:05]}  Ke7 {[%clk 0:02:27]} 22. a3 {[%clk 0:01:41]}  Rb8 {[%clk 0:02:25]} 23. Qd3 {[%clk 0:01:35]}  Kf8 {[%clk 0:02:19]} 24. Rh1 {[%clk 0:01:32]}  Kg7 {[%clk 0:02:15]} 25. Nd4 {[%clk 0:01:32]}  Nxd4 {[%clk 0:02:13]} 26. cxd4 {[%clk 0:01:32]}  Bxg4 {[%clk 0:02:13]} 27. f3 {[%clk 0:01:32]}  Bf5 {[%clk 0:02:13]} 28. Qd2 {[%clk 0:01:24]}  Qb5 {[%clk 0:02:11]} 29. Qc3 {[%clk 0:01:19]}  c5 {[%clk 0:02:06]} 30. Bxd6 {[%clk 0:01:09]}  cxd4 {[%clk 0:02:06]} 31. Qb4 {[%clk 0:00:55]}  Bxc2+ {[%clk 0:02:02]} 0-1


[Site "https://www.chess.com"]

[Event "Titled Tuesday Blitz May 24 Early 2022"]
[White "Seemann, Jakub"]
[Black "Yeletsky, Ivan"]
[WhiteFideId "21874697"]
[BlackFideId "24180327"]
[WhiteElo "2003"]
[BlackElo "2319"]
[Result "0-1"]
[Round "06"]
[TimeControl "180+1"]
[Date "2022.05.24"]
[WhiteClock "0:00:14"]
[BlackClock "0:00:09"]

1. e4 {[%clk 0:03:00]}  e5 {[%clk 0:02:59]} 2. Nf3 {[%clk 0:03:00]}  Nf6 {[%clk 0:02:59]} 3. Nxe5 {[%clk 0:02:59]}  d6 {[%clk 0:02:59]} 4. Nf3 {[%clk 0:02:59]}  Nxe4 {[%clk 0:02:57]} 5. d4 {[%clk 0:02:59]}  d5 {[%clk 0:02:58]} 6. Bd3 {[%clk 0:02:57]}  Be7 {[%clk 0:02:57]} 7. O-O {[%clk 0:02:57]}  Bf5 {[%clk 0:02:57]} 8. c4 {[%clk 0:02:56]}  dxc4 {[%clk 0:02:55]} 9. Bxc4 {[%clk 0:02:54]}  O-O {[%clk 0:02:55]} 10. Nc3 {[%clk 0:02:53]}  Nc6 {[%clk 0:02:42]} 11. Bd3 {[%clk 0:02:48]}  Nxc3 {[%clk 0:02:29]} 12. bxc3 {[%clk 0:02:48]}  Bxd3 {[%clk 0:02:30]} 13. Qxd3 {[%clk 0:02:48]}  b6 {[%clk 0:02:27]} 14. Re1 {[%clk 0:02:45]}  Bf6 {[%clk 0:02:26]} 15. Bf4 {[%clk 0:02:44]}  Ne7 {[%clk 0:02:21]} 16. Ne5 {[%clk 0:02:39]}  c5 {[%clk 0:02:15]} 17. Rad1 {[%clk 0:02:38]}  cxd4 {[%clk 0:02:14]} 18. cxd4 {[%clk 0:02:37]}  Nd5 {[%clk 0:02:03]} 19. Bg3 {[%clk 0:02:36]}  Rc8 {[%clk 0:02:03]} 20. Qf5 {[%clk 0:02:36]}  Nc3 {[%clk 0:01:56]} 21. Rd2 {[%clk 0:02:16]}  Qd5 {[%clk 0:01:53]} 22. h4 {[%clk 0:02:07]}  Nxa2 {[%clk 0:01:34]} 23. h5 {[%clk 0:02:05]}  h6 {[%clk 0:01:34]} 24. Bf4 {[%clk 0:02:02]}  Nc3 {[%clk 0:01:19]} 25. Bxh6 {[%clk 0:01:58]}  Qe6 {[%clk 0:01:19]} 26. Qxe6 {[%clk 0:00:42]}  fxe6 {[%clk 0:01:19]} 27. Bf4 {[%clk 0:00:39]}  Nd5 {[%clk 0:01:18]} 28. Bg3 {[%clk 0:00:38]}  a5 {[%clk 0:01:07]} 29. Rb1 {[%clk 0:00:23]}  a4 {[%clk 0:00:59]} 30. Nd7 {[%clk 0:00:23]}  Rf7 {[%clk 0:00:59]} 31. Nxb6 {[%clk 0:00:10]}  Rb7 {[%clk 0:00:59]} 32. Nxc8 {[%clk 0:00:08]}  Rxb1+ {[%clk 0:00:59]} 33. Kh2 {[%clk 0:00:08]}  Nc3 {[%clk 0:00:55]} 34. Bd6 {[%clk 0:00:08]}  Ne4 {[%clk 0:00:54]} 35. Ra2 {[%clk 0:00:08]}  Bxd4 {[%clk 0:00:14]} 36. g3 {[%clk 0:00:02]}  Nc3 {[%clk 0:00:04]} 37. Ra3 {[%clk 0:00:02]}  Rb3 {[%clk 0:00:03]} 38. Rxb3 {[%clk 0:00:02]}  axb3 {[%clk 0:00:04]} 39. Ba3 {[%clk 0:00:03]}  Nb5 {[%clk 0:00:03]} 40. Bc1 {[%clk 0:00:04]}  Bxf2 {[%clk 0:00:03]} 41. Kg2 {[%clk 0:00:03]}  Bd4 {[%clk 0:00:03]} 42. Ne7+ {[%clk 0:00:04]}  Kf7 {[%clk 0:00:04]} 43. Ng6 {[%clk 0:00:04]}  b2 {[%clk 0:00:03]} 44. Bxb2 {[%clk 0:00:05]}  Bxb2 {[%clk 0:00:04]} 45. Kf3 {[%clk 0:00:06]}  Bf6 {[%clk 0:00:04]} 46. g4 {[%clk 0:00:04]}  Nd4+ {[%clk 0:00:05]} 47. Ke4 {[%clk 0:00:04]}  Nc6 {[%clk 0:00:06]} 48. Nf4 {[%clk 0:00:05]}  Ne5 {[%clk 0:00:05]} 49. g5 {[%clk 0:00:04]}  Bxg5 {[%clk 0:00:04]} 50. Kxe5 {[%clk 0:00:03]}  Bxf4+ {[%clk 0:00:05]} 51. Kxf4 {[%clk 0:00:04]}  Kf6 {[%clk 0:00:05]} 52. Kg4 {[%clk 0:00:04]}  e5 {[%clk 0:00:05]} 53. Kg3 {[%clk 0:00:05]}  Kg5 {[%clk 0:00:05]} 54. Kf3 {[%clk 0:00:05]}  Kxh5 {[%clk 0:00:06]} 55. Ke4 {[%clk 0:00:06]}  Kh6 {[%clk 0:00:04]} 56. Kxe5 {[%clk 0:00:07]}  g5 {[%clk 0:00:04]} 57. Ke4 {[%clk 0:00:07]}  Kh5 {[%clk 0:00:04]} 58. Kf3 {[%clk 0:00:08]}  Kh4 {[%clk 0:00:05]} 59. Kf2 {[%clk 0:00:08]}  Kh3 {[%clk 0:00:05]} 60. Kg1 {[%clk 0:00:08]}  Kg3 {[%clk 0:00:06]} 61. Kh1 {[%clk 0:00:09]}  g4 {[%clk 0:00:04]} 62. Kg1 {[%clk 0:00:09]}  Kh3 {[%clk 0:00:04]} 63. Kh1 {[%clk 0:00:10]}  g3 {[%clk 0:00:05]} 64. Kg1 {[%clk 0:00:11]}  g2 {[%clk 0:00:06]} 65. Kf2 {[%clk 0:00:12]}  Kh2 {[%clk 0:00:07]} 66. Ke3 {[%clk 0:00:12]}  g1=Q+ {[%clk 0:00:08]} 67. Ke4 {[%clk 0:00:13]}  Qg2+ {[%clk 0:00:08]} 68. Ke5 {[%clk 0:00:14]}  Kg1 {[%clk 0:00:09]} 0-1


[Site "https://www.chess.com"]

[Event "Titled Tuesday Blitz May 24 Early 2022"]
[White "Seo, Jung Min"]
[Black "Vidit, Santosh Gujrathi"]
[WhiteFideId "1734687"]
[BlackFideId "5029465"]
[WhiteElo "2401"]
[BlackElo "2654"]
[Result "1-0"]
[Round "06"]
[TimeControl "180+1"]
[Date "2022.05.24"]
[WhiteClock "0:00:39"]
[BlackClock "0:00:03"]

1. d4 {[%clk 0:03:00]}  e6 {[%clk 0:02:57]} 2. c4 {[%clk 0:03:00]}  b6 {[%clk 0:02:57]} 3. e4 {[%clk 0:02:59]}  Bb7 {[%clk 0:02:57]} 4. Bd3 {[%clk 0:02:55]}  g6 {[%clk 0:02:56]} 5. Nf3 {[%clk 0:02:54]}  Bg7 {[%clk 0:02:57]} 6. O-O {[%clk 0:02:54]}  Ne7 {[%clk 0:02:56]} 7. Nc3 {[%clk 0:02:52]}  d6 {[%clk 0:02:55]} 8. Qe2 {[%clk 0:02:51]}  O-O {[%clk 0:02:50]} 9. Rb1 {[%clk 0:02:50]}  Nbc6 {[%clk 0:02:31]} 10. d5 {[%clk 0:02:48]}  Nb4 {[%clk 0:02:29]} 11. a3 {[%clk 0:02:43]}  Nxd3 {[%clk 0:02:20]} 12. Qxd3 {[%clk 0:02:44]}  Qd7 {[%clk 0:02:18]} 13. b4 {[%clk 0:02:43]}  Ba6 {[%clk 0:02:07]} 14. Rd1 {[%clk 0:02:39]}  Rad8 {[%clk 0:02:00]} 15. h3 {[%clk 0:02:30]}  Rfe8 {[%clk 0:01:56]} 16. Nd4 {[%clk 0:02:26]}  Bb7 {[%clk 0:01:28]} 17. Bg5 {[%clk 0:02:13]}  h6 {[%clk 0:01:27]} 18. Be3 {[%clk 0:02:11]}  c6 {[%clk 0:01:13]} 19. dxc6 {[%clk 0:02:08]}  Bxc6 {[%clk 0:01:06]} 20. Nxc6 {[%clk 0:01:57]}  Nxc6 {[%clk 0:01:07]} 21. Ne2 {[%clk 0:01:57]}  Ne5 {[%clk 0:01:04]} 22. Qb3 {[%clk 0:01:57]}  Qc6 {[%clk 0:01:00]} 23. Rbc1 {[%clk 0:01:42]}  Qxe4 {[%clk 0:00:59]} 24. Nd4 {[%clk 0:01:41]}  a6 {[%clk 0:00:54]} 25. Ne2 {[%clk 0:01:40]}  b5 {[%clk 0:00:45]} 26. cxb5 {[%clk 0:01:36]}  axb5 {[%clk 0:00:46]} 27. Rc7 {[%clk 0:01:26]}  Nc4 {[%clk 0:00:45]} 28. Nc3 {[%clk 0:01:26]}  Qf5 {[%clk 0:00:33]} 29. Bd4 {[%clk 0:01:24]}  Bxd4 {[%clk 0:00:28]} 30. Rxd4 {[%clk 0:01:23]}  Rc8 {[%clk 0:00:26]} 31. Rxc8 {[%clk 0:01:21]}  Rxc8 {[%clk 0:00:26]} 32. a4 {[%clk 0:01:21]}  bxa4 {[%clk 0:00:25]} 33. Nxa4 {[%clk 0:01:19]}  d5 {[%clk 0:00:24]} 34. b5 {[%clk 0:01:16]}  Qe5 {[%clk 0:00:24]} 35. Rd1 {[%clk 0:01:13]}  Qe2 {[%clk 0:00:20]} 36. Rc1 {[%clk 0:01:10]}  Rb8 {[%clk 0:00:16]} 37. b6 {[%clk 0:01:05]}  Rb7 {[%clk 0:00:14]} 38. Qb5 {[%clk 0:01:02]}  Qe5 {[%clk 0:00:09]} 39. Qc6 {[%clk 0:00:57]}  Qb8 {[%clk 0:00:08]} 40. Rb1 {[%clk 0:00:57]}  h5 {[%clk 0:00:08]} 41. h4 {[%clk 0:00:55]}  Ne5 {[%clk 0:00:07]} 42. Qb5 {[%clk 0:00:51]}  Nc4 {[%clk 0:00:06]} 43. Qc6 {[%clk 0:00:50]}  Kg7 {[%clk 0:00:06]} 44. g3 {[%clk 0:00:49]}  Ne5 {[%clk 0:00:05]} 45. Qb5 {[%clk 0:00:49]}  Qc8 {[%clk 0:00:05]} 46. Nc5 {[%clk 0:00:46]}  Nf3+ {[%clk 0:00:03]} 47. Kg2 {[%clk 0:00:45]}  Nd4 {[%clk 0:00:03]} 48. Qb4 {[%clk 0:00:42]}  e5 {[%clk 0:00:03]} 49. Nxb7 {[%clk 0:00:41]}  Qxb7 {[%clk 0:00:04]} 50. Qd6 {[%clk 0:00:41]}  Nc6 {[%clk 0:00:03]} 51. Qxd5 {[%clk 0:00:39]} 1-0


[Site "https://www.chess.com"]

[Event "Titled Tuesday Blitz May 24 Early 2022"]
[White "Shevtchenko, Olesya"]
[Black "Redzisz, Michal"]
[WhiteFideId "24131890"]
[BlackFideId "21816107"]
[WhiteElo "2003"]
[BlackElo "2004"]
[Result "0-1"]
[Round "06"]
[TimeControl "180+1"]
[Date "2022.05.25"]
[WhiteClock "0:00:13"]
[BlackClock "0:00:08"]

1. c4 {[%clk 0:03:00]}  e5 {[%clk 0:02:59]} 2. Nc3 {[%clk 0:03:00]}  d6 {[%clk 0:03:00]} 3. Nf3 {[%clk 0:02:55]}  f5 {[%clk 0:03:00]} 4. g3 {[%clk 0:02:55]}  Nf6 {[%clk 0:03:01]} 5. d4 {[%clk 0:02:55]}  e4 {[%clk 0:02:58]} 6. Nh4 {[%clk 0:02:55]}  Be7 {[%clk 0:02:55]} 7. Bh3 {[%clk 0:02:52]}  g6 {[%clk 0:02:44]} 8. f3 {[%clk 0:02:48]}  O-O {[%clk 0:02:36]} 9. O-O {[%clk 0:02:32]}  c6 {[%clk 0:01:51]} 10. d5 {[%clk 0:02:16]}  Nbd7 {[%clk 0:01:40]} 11. fxe4 {[%clk 0:02:10]}  fxe4 {[%clk 0:01:40]} 12. Bh6 {[%clk 0:02:05]}  Qb6+ {[%clk 0:01:22]} 13. Kh1 {[%clk 0:02:00]}  Qxb2 {[%clk 0:01:23]} 14. Bxf8 {[%clk 0:01:45]}  Nxf8 {[%clk 0:01:24]} 15. Bxc8 {[%clk 0:01:35]}  Rxc8 {[%clk 0:01:24]} 16. Qc1 {[%clk 0:01:23]}  Qb4 {[%clk 0:01:11]} 17. Rb1 {[%clk 0:01:14]}  Qxc4 {[%clk 0:01:09]} 18. Rxb7 {[%clk 0:01:14]}  N8d7 {[%clk 0:00:43]} 19. Qb2 {[%clk 0:00:51]}  cxd5 {[%clk 0:00:38]} 20. Nb5 {[%clk 0:00:31]}  a6 {[%clk 0:00:13]} 21. Nxd6 {[%clk 0:00:19]}  Bxd6 {[%clk 0:00:12]} 22. Rxf6 {[%clk 0:00:19]}  Qc1+ {[%clk 0:00:11]} 23. Qxc1 {[%clk 0:00:17]}  Rxc1+ {[%clk 0:00:12]} 24. Kg2 {[%clk 0:00:17]}  Nxf6 {[%clk 0:00:12]} 25. Rb6 {[%clk 0:00:15]}  Be5 {[%clk 0:00:10]} 26. Rxa6 {[%clk 0:00:13]}  Ng4 {[%clk 0:00:08]} 27. h3 {[%clk 0:00:13]}  Ne3+ {[%clk 0:00:08]} 28. Kf2 {[%clk 0:00:13]}  Bd4 {[%clk 0:00:08]} 29. Ra8+ {[%clk 0:00:13]}  Kg7 {[%clk 0:00:08]} 0-1


[Site "https://www.chess.com"]